fUSD/lending_fUSD_20240715
["ID","MTS","AMOUNT","RATE_DAILY","PERIOD"]
[332233313,1721059843807,-500.0,0.00013988,2]
[332233314,1721059843817,-500.0,0.00013988,2]
[332233315,1721059843827,-500.0,0.00013988,2]
[332233316,1721059843836,-262.71398698,0.00013988,2]
[332233317,1721059843846,-500.0,0.00013988,2]
[332233318,1721059843856,-235.83,0.00013988,2]
[332233319,1721059843865,-500.0,0.00013988,2]
[332233320,1721059843875,-176.48341657,0.00013988,2]
[332233321,1721059843885,-478.03,0.00013988,2]
[332233322,1721059843894,-500.0,0.00013988,2]
[332233323,1721059843904,-500.0,0.00013988,2]
[332233324,1721059843914,-500.0,0.00013988,2]
[332233325,1721059843924,-500.0,0.00013988,2]
[332233326,1721059843933,-500.0,0.00013988,2]
[332233327,1721059843943,-500.0,0.00013988,2]
[332233328,1721059843952,-500.0,0.00013988,2]
[332233329,1721059843961,-621.75781255,0.00013988,2]
[332233330,1721059843971,-500.0,0.00013988,2]
[332233331,1721059843980,-500.0,0.00013988,2]
[332233332,1721059843990,-469.16,0.00013988,2]
[332233333,1721059843999,-500.0,0.00013988,2]
[332233334,1721059844009,-500.0,0.00013988,2]
[332233335,1721059844018,-500.0,0.00013988,2]
[332233336,1721059844028,-500.0,0.00013988,2]
[332233337,1721059844037,-500.0,0.00013988,2]
[332233338,1721059844047,-500.0,0.00013988,2]
[332233339,1721059844056,-505.20121064,0.00013988,2]
[332233340,1721059844066,-500.0,0.00013988,2]
[332233341,1721059844075,-500.0,0.00013988,2]
[332233342,1721059844085,-500.0,0.00013988,2]
[332233343,1721059844094,-500.0,0.00013988,2]
[332233344,1721059844104,-500.0,0.00013988,2]
[332233345,1721059844113,-220.17,0.00013988,2]
[332233346,1721059844123,-504.96896736,0.00013988,2]
[332233347,1721059844133,-500.0,0.00013988,2]
[332233348,1721059844142,-500.0,0.00013988,2]
[332233349,1721059844152,-500.0,0.00013988,2]
[332233350,1721059844162,-283.41,0.00013988,2]
[332233351,1721059844172,-500.0,0.00013988,2]
[332233352,1721059844182,-500.0,0.00013988,2]
[332233353,1721059844192,-500.0,0.00013988,2]
[332233354,1721059844201,-579.35,0.00013988,2]
[332233355,1721059844211,-372.16,0.00013988,2]
[332233356,1721059844221,-510.01,0.00013988,2]
[332233357,1721059844231,-577.21,0.00013988,2]
[332233358,1721059844240,-351.62,0.00013988,2]
[332233359,1721059844250,-583.76,0.00013988,2]
[332233360,1721059844259,-413.57,0.00013988,2]
[332233361,1721059844269,-23651.4823105,0.00013988,3]
[332233362,1721059844278,-2460.43666001,0.00013988,3]
[332233363,1721059844295,-2500.05095008,0.00013988,3]
[332233364,1721059844305,-63070.6194947,0.00013989,3]
[332233365,1721059844314,-26455.9339205,0.00013989,3]
[332233366,1721059844324,-532.43,0.00013989,2]
[332233367,1721059844334,-11574.4710902,0.0001399,3]
[332233368,1721059844343,-1700.0,0.0001399,2]
[332233369,1721059844353,-500.0,0.0001399,2]
[332233370,1721059844362,-1400.0,0.0001399,2]
[332233371,1721059844371,-3853.384852,0.00013998,2]
[332233372,1721059844381,-5780.077278,0.00013998,2]
[332233373,1721059844391,-7706.769704,0.00013998,2]
[332233374,1721059844400,-9633.462131,0.00013998,2]
[332233375,1721059844409,-13486.846983,0.00013998,2]
[332233376,1721059844419,-15413.539409,0.00013998,2]
[332233377,1721059844428,-330255.43204614,0.00013999,2]
[332233378,1721059844443,-352.50596227,0.00013999,2]
[332233379,1721059844452,-3000.0,0.00013999,2]
[332233380,1721059844462,-1692.00557591,0.00013999,2]
[332233381,1721059844471,-285.414793,0.00014,2]
[332233382,1721059844483,-197257.71303753,0.00014,2]
[332233383,1721059844492,-674634.89864669,0.00014,2]
[332233435,1721059845940,-890.3985,0.00014,2]
[332233444,1721059845996,-817.32850703,0.00014,2]
[332233446,1721059846007,-779.43669427,0.00014,2]
[332233449,1721059846051,-17789.87704049,0.00014,2]
[332233450,1721059846107,-277.7,0.00014,2]
[332233451,1721059846163,-4660.92624026,0.00014,2]
[332233452,1721059857983,165.95,0.00018849,30]
[332233453,1721059951021,150.0,0.00025034,120]
[332233454,1721059951637,158.64136139,0.00019178,30]
[332233455,1721059951697,158.64136139,0.00019288,30]
[332233456,1721059951959,158.64136139,0.00019397,30]
[332233457,1721059952201,158.64136139,0.00019507,30]
[332233458,1721059952328,158.64136139,0.00019644,30]
[332233459,1721059952533,158.64136139,0.00019753,30]
[332233460,1721059952767,158.64136139,0.00019863,30]
[332233461,1721059952894,158.64136139,0.00019973,30]
[332233468,1721060457765,165.95,0.00018849,30]
[332233469,1721060490867,150.0,0.00024862,120]
[332233471,1721060671226,151.2,0.0001399,30]
[332233472,1721060716998,-167.47,0.00010066,2]
[332233473,1721060717024,-873.67,0.00010705,2]
[332233474,1721060717047,-150.0,0.00011097,2]
[332233475,1721060717070,-3077.57558188,0.00011098,2]
[332233476,1721060717090,-1787.47527683,0.00011098,2]
[332233477,1721060717111,-1015.0419003,0.00011098,2]
[332233478,1721060717132,-1927.87652601,0.00011098,2]
[332233479,1721060717153,-2204.10519174,0.00011098,2]
[332233480,1721060717174,-194.70414774,0.00011098,2]
[332233481,1721060717195,-722.24202244,0.00011098,2]
[332233482,1721060717216,-483.3927836,0.00011098,2]
[332233483,1721060717238,-597.40870787,0.00011098,2]
[332233484,1721060717258,-155.31036517,0.00011098,2]
[332233485,1721060717279,-155.14898173,0.00011098,2]
[332233486,1721060717300,-155.30247153,0.00011098,2]
[332233487,1721060717320,-363.66843412,0.00011098,2]
[332233488,1721060717343,-193.62934922,0.00011098,2]
[332233489,1721060717364,-311.57161686,0.00011098,2]
[332233490,1721060717385,-2740.96246978,0.00011098,2]
[332233491,1721060717406,-1194.59236205,0.00011098,2]
[332233492,1721060717426,-4467.02483465,0.00011098,2]
[332233493,1721060717447,-15451.9318012,0.00011199,2]
[332233494,1721060717468,-407.89517528,0.00011199,2]
[332233495,1721060803878,-829.98,0.00010742,2]
[332233496,1721060803899,-1302.80620649,0.00011,2]
[332233497,1721060803919,-1500.0,0.00011098,2]
[332233498,1721060803940,-5699.29289489,0.00011199,2]
[332233499,1721060803960,-10667.92089862,0.00011199,2]
[332233500,1721060815383,-1136.70475368,0.00011197,2]
[332233501,1721060815403,-3863.29524632,0.00011199,2]
[332233504,1721060850763,150.0,0.00022204,120]
[332233521,1721060970782,150.0,0.00023279,120]
[332233534,1721061032039,-244.34142426,0.000101,2]
[332233535,1721061032049,-69.2296264,0.00011098,2]
[332233538,1721061032097,-820.90941572,0.00011098,2]
[332233539,1721061032107,-6234.64847857,0.00011098,2]
[332233540,1721061032116,-264.94029447,0.00011197,2]
[332233541,1721061032126,-150.0,0.00011198,2]
[332233542,1721061032136,-6063.5803072,0.00011199,2]
[332233543,1721061032145,-28065.00326911,0.00011199,2]
[332233544,1721061032155,-757.19605409,0.00011199,2]
[332233545,1721061032164,-8432.25375514,0.00011199,2]
[332233546,1721061032174,-1272.77007112,0.00011199,2]
[332233547,1721061032183,-1426.62952569,0.000118,2]
[332233548,1721061032193,-2279.10597725,0.00012273,3]
[332233549,1721061032203,-1272.77007112,0.00012302,2]
[332233550,1721061032212,-322.6702118,0.00012302,2]
[332233551,1721061032222,-150.0,0.00012368,2]
[332233552,1721061032231,-182.51585465,0.0001251,2]
[332233553,1721061032241,-250.0,0.00012569,2]
[332233554,1721061032250,-181.41216029,0.0001259,2]
[332233555,1721061032259,-150.0,0.000126,2]
[332233556,1721061032269,-215.58,0.00012624,2]
[332233557,1721061032278,-1000.0,0.00012714,2]
[332233558,1721061032289,-180.54,0.00012734,2]
[332233559,1721061032301,-3721.17,0.00012821,2]
[332233560,1721061032310,-829.98,0.00013006,2]
[332233561,1721061032320,-979.55417132,0.0001305,2]
[332233562,1721061032329,-1136.70475368,0.00013128,2]
[332233563,1721061032339,-155.0,0.00013472,2]
[332233564,1721061032349,-1500.0,0.00013472,2]
[332233565,1721061032359,-198.71300995,0.00013472,2]
[332233566,1721061032369,-236.595715,0.00013498,2]
[332233567,1721061032378,-743.219361,0.00013498,2]
[332233568,1721061032387,-155.0,0.00013543,2]
[332233569,1721061032397,-236.595715,0.00013667,2]
[332233571,1721061032407,-743.219361,0.00013667,2]
[332233572,1721061032416,-1874.21,0.00013699,2]
[332233573,1721061032425,-150.4,0.00013699,2]
[332233574,1721061032434,-150.0,0.00013699,2]
[332233575,1721061032443,-150.0,0.00013699,2]
[332233576,1721061032453,-367.07162065,0.00013736,2]
[332233577,1721061032463,-5006.1923,0.00013798,2]
[332233578,1721061032472,-3437.39063618,0.00013798,2]
[332233579,1721061032484,-1296.98145847,0.00013798,2]
[332233580,1721061032495,-437.83977916,0.00013798,2]
[332233581,1721061032506,-545.15058203,0.00013798,2]
[332233582,1721061032518,-2880.53754416,0.00013798,2]
[332233583,1721061032527,-953.64430849,0.00013799,2]
[332233584,1721061032538,-617.82158968,0.00013799,2]
[332233592,1721061038110,-264.94029447,0.00011098,2]
[332233593,1721061038120,-160.60970553,0.00013799,2]
[332233594,1721061038132,-428.61941707,0.00013799,2]
[332233595,1721061038239,-310.24010705,0.00013799,2]
[332233596,1721061038250,-1874.46370329,0.00013799,2]
[332233597,1721061038301,-1856.53756889,0.00013799,2]
[332233598,1721061038311,-911.6404,0.00013799,2]
[332233599,1721061038321,-236.595715,0.00013835,2]
[332233600,1721061038330,-743.219361,0.00013835,2]
[332233601,1721061038339,-9252.14906276,0.00013849,2]
[332233602,1721061038349,-1237.79888894,0.00013849,2]
[332233603,1721061038358,-627.78159693,0.00013849,2]
[332233604,1721061038369,-11056.99349029,0.0001387,3]
[332233605,1721061038381,-107672.09335771,0.0001387,3]
[332233606,1721061038390,-500.0,0.00013879,2]
[332233607,1721061038399,-500.0,0.00013879,2]
[332233608,1721061038409,-500.0,0.00013879,2]
[332233609,1721061038418,-500.0,0.00013879,2]
[332233610,1721061038429,-66516.91120781,0.0001388,2]
[332233611,1721061038440,-17566.6419341,0.0001388,2]
[332233612,1721061038451,-9553.154996,0.0001388,2]
[332233613,1721061038463,-9084.2900005,0.0001388,2]
[332233614,1721061038474,-13724.235,0.0001388,2]
[332233616,1721061038485,-1384.75,0.0001388,2]
[332233617,1721061038496,-5915.5,0.0001388,2]
[332233618,1721061038515,-483.66,0.0001388,2]
[332233619,1721061038525,-18547.3192137,0.0001388,2]
[332233628,1721061040143,-2535.7332,0.0001388,2]
[332233629,1721061040155,-415.87000001,0.0001388,2]
[332233630,1721061040166,-469.26882658,0.0001388,2]
[332233631,1721061040254,-400.91241552,0.0001388,2]
[332233632,1721061040266,-92886.39480677,0.0001388,2]
[332233633,1721061040276,-500.0,0.00013888,2]
[332233634,1721061040285,-200.0,0.00013888,2]
[332233635,1721061040296,-8480.64906054,0.00013888,3]
[332233636,1721061040305,-33922.5962422,0.00013889,3]
[332233637,1721061040315,-166.36142617,0.00013889,2]
[332233638,1721061040325,-155.0,0.00013889,2]
[332233639,1721061040334,-33922.5962422,0.0001389,3]
[332233640,1721061040344,-220.42,0.0001389,3]
[332233641,1721061040353,-253.29,0.00013898,2]
[332233642,1721061040363,-596.48,0.00013898,2]
[332233643,1721061040372,-500.0,0.00013898,2]
[332233644,1721061040381,-500.0,0.00013898,2]
[332233645,1721061040390,-500.0,0.00013898,2]
[332233646,1721061040400,-551.87,0.00013898,2]
[332233647,1721061040410,-338.08153386,0.00013898,2]
[332233648,1721061040420,-500.0,0.00013898,2]
[332233649,1721061040429,-317.86,0.00013898,2]
[332233650,1721061040438,-500.0,0.00013898,2]
[332233651,1721061040448,-436.65,0.00013898,2]
[332233652,1721061040457,-500.0,0.00013898,2]
[332233653,1721061040468,-500.0,0.00013898,2]
[332233654,1721061040477,-500.0,0.00013898,2]
[332233655,1721061040487,-164.93,0.00013898,2]
[332233656,1721061040497,-500.0,0.00013898,2]
[332233657,1721061040507,-500.0,0.00013898,2]
[332233658,1721061040516,-355.09,0.00013898,2]
[332233659,1721061040526,-516.75,0.00013898,2]
[332233660,1721061040535,-1470.19,0.00013898,2]
[332233661,1721061040546,-597.99,0.00013898,2]
[332233662,1721061040555,-201.0,0.00013898,2]
[332233664,1721061040564,-182.68,0.00013898,2]
[332233666,1721061040574,-284.66,0.00013898,2]
[332233668,1721061040584,-457.88,0.00013898,2]
[332233670,1721061040594,-478.9432686,0.00013898,2]
[332233672,1721061040604,-490.56,0.00013898,2]
[332233674,1721061040613,-500.0,0.00013899,2]
[332233676,1721061040622,-504.44500739,0.00013899,2]
[332233678,1721061040632,-507.3168749,0.00013899,2]
[332233680,1721061040641,-500.0,0.00013899,2]
[332233682,1721061040651,-508.60879204,0.00013899,2]
[332233684,1721061040661,-506.99434335,0.00013899,2]
[332233686,1721061040672,-503.21583244,0.00013899,2]
[332233688,1721061040681,-500.0,0.00013899,2]
[332233690,1721061040691,-506.31189421,0.00013899,2]
[332233692,1721061040701,-500.0,0.00013899,2]
[332233693,1721061040710,-554.59510366,0.00013899,2]
[332233694,1721061040719,-500.0,0.00013899,2]
[332233695,1721061040728,-500.0,0.00013899,2]
[332233696,1721061040738,-356.70547595,0.00013899,2]
[332233697,1721061040747,-530.96861463,0.00013899,2]
[332233698,1721061040757,-500.0,0.00013899,2]
[332233699,1721061040766,-504.32631339,0.00013899,2]
[332233700,1721061040776,-339.97058644,0.00013899,2]
[332233701,1721061040785,-266.91668952,0.00013899,2]
[332233702,1721061040796,-585.42492761,0.00013899,2]
[332233703,1721061040809,-500.0,0.00013899,2]
[332233704,1721061040819,-500.0,0.00013899,2]
[332233705,1721061040829,-503.32204992,0.00013899,2]
[332233707,1721061040838,-501.07998916,0.00013899,2]
[332233709,1721061040850,-502.87641465,0.00013899,2]
[332233711,1721061040860,-502.78553264,0.00013899,2]
[332233713,1721061040870,-503.05891008,0.00013899,2]
[332233715,1721061040880,-503.11084728,0.00013899,2]
[332233717,1721061040892,-500.0,0.00013899,2]
[332233719,1721061040902,-502.63796993,0.00013899,2]
[332233721,1721061040912,-571.1000552,0.00013899,2]
[332233723,1721061040923,-500.0,0.00013899,2]
[332233725,1721061040933,-502.21147287,0.00013899,2]
[332233727,1721061040943,-183.92616035,0.00013899,2]
[332233729,1721061040953,-500.0,0.00013899,2]
[332233731,1721061040965,-500.0,0.00013899,2]
[332233733,1721061040975,-500.0,0.00013899,2]
[332233735,1721061040984,-500.0,0.00013899,2]
[332233737,1721061040993,-150.0,0.00013899,2]
[332233739,1721061041003,-500.0,0.00013899,2]
[332233741,1721061041013,-500.0,0.00013899,2]
[332233743,1721061041023,-213.47,0.00013899,2]
[332233745,1721061041032,-649.2,0.00013899,2]
[332233747,1721061041041,-500.0,0.00013899,2]
[332233749,1721061041054,-500.0,0.00013899,2]
[332233751,1721061041063,-500.0,0.00013899,2]
[332233753,1721061041074,-500.0,0.00013899,2]
[332233755,1721061041083,-404.78,0.00013899,2]
[332233757,1721061041093,-299.52,0.00013899,2]
[332233759,1721061041103,-500.0,0.00013899,2]
[332233761,1721061041112,-273.87,0.00013899,2]
[332233763,1721061041122,-655.67,0.00013899,2]
[332233765,1721061041131,-500.0,0.00013899,2]
[332233767,1721061041140,-344.6,0.00013899,2]
[332233769,1721061041149,-500.0,0.00013899,2]
[332233771,1721061041159,-500.0,0.00013899,2]
[332233772,1721061041168,-500.0,0.00013899,2]
[332233774,1721061041177,-458.34,0.00013899,2]
[332233776,1721061041187,-451.55,0.00013899,2]
[332233778,1721061041196,-500.0,0.00013899,2]
[332233780,1721061041206,-500.0,0.00013899,2]
[332233782,1721061041215,-500.0,0.00013899,2]
[332233784,1721061041226,-500.0,0.00013899,2]
[332233786,1721061041235,-418.44,0.00013899,2]
[332233788,1721061041245,-500.0,0.00013899,2]
[332233791,1721061041254,-314.89,0.00013899,2]
[332233793,1721061041264,-500.0,0.00013899,2]
[332233795,1721061041274,-500.0,0.00013899,2]
[332233797,1721061041283,-330.22,0.00013899,2]
[332233799,1721061041294,-500.0,0.00013899,2]
[332233800,1721061041304,-614.15,0.00013899,2]
[332233802,1721061041314,-429.45,0.00013899,2]
[332233804,1721061041323,-500.0,0.00013899,2]
[332233806,1721061041332,-500.0,0.00013899,2]
[332233808,1721061041342,-500.0,0.00013899,2]
[332233810,1721061041352,-508.19217848,0.00013899,2]
[332233812,1721061041362,-500.0,0.00013899,2]
[332233814,1721061041372,-346.67,0.00013899,2]
[332233816,1721061041381,-207.8,0.00013899,2]
[332233818,1721061041391,-500.0,0.00013899,2]
[332233820,1721061041401,-379.97,0.00013899,2]
[332233822,1721061041411,-500.0,0.00013899,2]
[332233824,1721061041421,-500.0,0.00013899,2]
[332233826,1721061041430,-233.42,0.00013899,2]
[332233828,1721061041440,-565.19202221,0.00013899,2]
[332233830,1721061041449,-502.29341655,0.00013899,2]
[332233832,1721061041458,-500.0,0.00013899,2]
[332233834,1721061041468,-431.53,0.00013899,2]
[332233837,1721061041478,-500.0,0.00013899,2]
[332233839,1721061041488,-263.32,0.00013899,2]
[332233841,1721061041497,-500.0,0.00013899,2]
[332233843,1721061041507,-500.0,0.00013899,2]
[332233844,1721061041516,-503.03610731,0.00013899,2]
[332233846,1721061041528,-2672.51,0.00013899,2]
[332233848,1721061041537,-500.0,0.00013899,2]
[332233850,1721061041547,-267.24,0.00013899,2]
[332233852,1721061041556,-500.0,0.00013899,2]
[332233854,1721061041567,-500.0,0.00013899,2]
[332233856,1721061041576,-500.0,0.00013899,2]
[332233858,1721061041586,-500.0,0.00013899,2]
[332233860,1721061041595,-355.67,0.00013899,2]
[332233862,1721061041605,-636.12,0.00013899,2]
[332233864,1721061041614,-500.0,0.00013899,2]
[332233866,1721061041624,-500.0,0.00013899,2]
[332233868,1721061041633,-500.0,0.00013899,2]
[332233870,1721061041643,-188.98,0.00013899,2]
[332233872,1721061041652,-500.0,0.00013899,2]
[332233874,1721061041661,-500.0,0.00013899,2]
[332233876,1721061041670,-500.0,0.00013899,2]
[332233878,1721061041680,-219.59231738,0.00013899,2]
[332233880,1721061041689,-500.0,0.00013899,2]
[332233882,1721061041699,-333.58,0.00013899,2]
[332233884,1721061041709,-296.92394975,0.00013899,2]
[332233886,1721061041719,-500.0,0.00013899,2]
[332233888,1721061041728,-500.0,0.00013899,2]
[332233890,1721061041738,-500.0,0.00013899,2]
[332233892,1721061041747,-252.98,0.00013899,2]
[332233894,1721061041756,-1242.71,0.00013899,2]
[332233896,1721061041766,-154.71916508,0.00013899,2]
[332233898,1721061041776,-500.0,0.00013899,2]
[332233900,1721061041785,-522.47768294,0.00013899,2]
[332233902,1721061041796,-471.09,0.00013899,2]
[332233904,1721061041806,-304.22,0.00013899,2]
[332233906,1721061041815,-417.28166069,0.00013899,2]
[332233908,1721061041824,-180.25635076,0.00013899,2]
[332233910,1721061041834,-239.83,0.00013899,2]
[332233912,1721061041844,-200.10559126,0.00013899,2]
[332233914,1721061041854,-669.08,0.00013899,2]
[332233916,1721061041865,-155.66736473,0.00013899,2]
[332233918,1721061041875,-155.28352034,0.00013899,2]
[332233920,1721061041884,-247.33,0.00013899,2]
[332233922,1721061041894,-214.08,0.00013899,2]
[332233924,1721061041904,-254.53325388,0.00013899,2]
[332233926,1721061041913,-500.0,0.00013899,2]
[332233928,1721061041923,-570.73,0.00013899,2]
[332233930,1721061041933,-235.82956703,0.00013899,2]
[332233932,1721061041943,-543.98,0.00013899,2]
[332233934,1721061041952,-651.8920518,0.00013899,2]
[332233936,1721061041962,-500.0,0.00013899,2]
[332233938,1721061041972,-47544.62534775,0.000139,2]
[332233962,1721061042221,-627.83,0.000139,2]
[332233964,1721061042233,-961.27203814,0.000139,2]
[332233966,1721061042244,-584.47445918,0.000139,2]
[332233973,1721061042313,-16847.79815493,0.000139,2]
[332233975,1721061042322,-1000.0,0.000139,2]
[332233977,1721061042332,-166.36142617,0.000139,2]
[332233979,1721061042342,-9886.40553036,0.000139,3]
[332233981,1721061042351,-7512.0,0.000139,2]
[332233983,1721061042360,-8480.64906054,0.00013934,3]
[332233985,1721061042369,-500.0,0.00013934,2]
[332233987,1721061042379,-500.0,0.00013934,2]
[332233989,1721061042388,-500.0,0.00013934,2]
[332233991,1721061042398,-500.0,0.00013934,2]
[332233992,1721061042407,-173.24,0.00013944,2]
[332233994,1721061042417,-16961.2981211,0.00013944,3]
[332233996,1721061042426,-3295.46851012,0.00013944,3]
[332233998,1721061042436,-165.99,0.00013953,2]
[332234000,1721061042446,-500.0,0.00013953,2]
[332234002,1721061042455,-322.17,0.00013953,2]
[332234004,1721061042466,-337.51,0.00013953,2]
[332234006,1721061042475,-547.78,0.00013953,2]
[332234008,1721061042487,-500.0,0.00013953,2]
[332234010,1721061042496,-500.0,0.00013953,2]
[332234012,1721061042506,-462.85,0.00013953,2]
[332234014,1721061042515,-360.58,0.00013953,2]
[332234016,1721061042525,-1470.19,0.00013953,2]
[332234018,1721061042534,-500.0,0.00013954,2]
[332234020,1721061042544,-500.0,0.00013954,2]
[332234022,1721061042558,-156.3705816,0.00013954,2]
[332234024,1721061042568,-500.0,0.00013954,2]
[332234026,1721061042577,-500.0,0.00013954,2]
[332234029,1721061042588,-500.0,0.00013954,2]
[332234031,1721061042598,-194.87032096,0.00013954,2]
[332234033,1721061042608,-647.09,0.00013954,2]
[332234035,1721061042618,-500.0,0.00013954,2]
[332234036,1721061042627,-500.0,0.00013954,2]
[332234038,1721061042637,-500.0,0.00013954,2]
[332234040,1721061042646,-600.95,0.00013954,2]
[332234042,1721061042655,-500.0,0.00013954,2]
[332234044,1721061042666,-500.0,0.00013954,2]
[332234046,1721061042676,-150.0,0.00013954,2]
[332234048,1721061042686,-185.22,0.00013954,2]
[332234050,1721061042696,-500.0,0.00013954,2]
[332234052,1721061042705,-500.0,0.00013954,2]
[332234054,1721061042715,-165.53,0.00013954,2]
[332234056,1721061042725,-297.83,0.00013954,2]
[332234058,1721061042735,-233.5,0.00013954,2]
[332234060,1721061042745,-500.0,0.00013954,2]
[332234062,1721061042757,-655.67,0.00013954,2]
[332234063,1721061042767,-500.0,0.00013954,2]
[332234064,1721061042776,-500.0,0.00013954,2]
[332234065,1721061042785,-500.0,0.00013954,2]
[332234066,1721061042795,-500.0,0.00013954,2]
[332234067,1721061042806,-500.0,0.00013954,2]
[332234069,1721061042816,-243.55,0.00013954,2]
[332234071,1721061042825,-500.0,0.00013954,2]
[332234073,1721061042835,-500.0,0.00013954,2]
[332234075,1721061042846,-500.0,0.00013954,2]
[332234076,1721061042859,-500.0,0.00013954,2]
[332234078,1721061042868,-500.0,0.00013954,2]
[332234080,1721061042878,-500.0,0.00013954,2]
[332234081,1721061042887,-500.0,0.00013954,2]
[332234082,1721061042899,-239.03,0.00013954,2]
[332234083,1721061042908,-500.0,0.00013954,2]
[332234084,1721061042918,-500.0,0.00013954,2]
[332234086,1721061042929,-500.0,0.00013954,2]
[332234087,1721061042938,-556.68,0.00013954,2]
[332234089,1721061042948,-500.0,0.00013954,2]
[332234091,1721061042958,-500.0,0.00013954,2]
[332234092,1721061042968,-507.38080949,0.00013954,2]
[332234093,1721061042977,-500.0,0.00013954,2]
[332234094,1721061042987,-2672.51,0.00013954,2]
[332234095,1721061042998,-500.0,0.00013954,2]
[332234096,1721061043007,-400.61,0.00013954,2]
[332234097,1721061043017,-449.87,0.00013954,2]
[332234098,1721061043027,-636.12,0.00013954,2]
[332234099,1721061043036,-500.0,0.00013954,2]
[332234100,1721061043048,-500.0,0.00013954,2]
[332234101,1721061043057,-466.78,0.00013954,2]
[332234102,1721061043067,-201.98,0.00013954,2]
[332234103,1721061043077,-500.0,0.00013954,2]
[332234104,1721061043087,-500.0,0.00013954,2]
[332234105,1721061043097,-500.0,0.00013954,2]
[332234106,1721061043107,-195.79,0.00013954,2]
[332234107,1721061043117,-500.0,0.00013954,2]
[332234108,1721061043126,-500.0,0.00013954,2]
[332234109,1721061043135,-500.0,0.00013954,2]
[332234110,1721061043145,-669.08,0.00013954,2]
[332234111,1721061043155,-173.10230545,0.00013954,2]
[332234113,1721061043164,-262.84,0.00013954,2]
[332234115,1721061043174,-8480.64906054,0.0001396,3]
[332234118,1721061043183,-1647.73425506,0.0001396,3]
[332234120,1721061043193,-2510.97186364,0.00013969,3]
[332234123,1721061043206,-5145.9968606,0.00013969,3]
[332234128,1721061043238,-272.13530599,0.00013969,3]
[332234130,1721061043249,-1204.910673,0.00013969,3]
[332234132,1721061043260,-1189.82,0.00013969,3]
[332234134,1721061043272,-848.79068257,0.00013969,3]
[332234137,1721061043284,-5788.6727353,0.00013969,3]
[332234138,1721061043293,-1157.85550209,0.00013969,3]
[332234139,1721061043306,-489.87875297,0.00013969,3]
[332234140,1721061043316,-1500.0,0.00013969,2]
[332234141,1721061043326,-1647.73425506,0.0001397,3]
[332234142,1721061043336,-8480.64906054,0.00013978,3]
[332234143,1721061043346,-3074.87945143,0.00013979,3]
[332234157,1721061043793,-5405.76960911,0.00013979,3]
[332234159,1721061043804,-10212.92195319,0.00013979,3]
[332234177,1721061043926,-9088.90114128,0.00013979,3]
[332234179,1721061043939,-2118.72222133,0.00013979,3]
[332234181,1721061043949,-3295.46851012,0.00013985,3]
[332234183,1721061043958,-500.0,0.00013988,2]
[332234184,1721061043967,-500.0,0.00013988,2]
[332234186,1721061043978,-500.0,0.00013988,2]
[332234188,1721061043987,-500.0,0.00013988,2]
[332234190,1721061043996,-500.0,0.00013988,2]
[332234192,1721061044006,-461.83289952,0.00013988,2]
[332234194,1721061044017,-38.16710048,0.00013988,2]
[332234196,1721061044027,-500.0,0.00013988,2]
[332234198,1721061044036,-426.79261217,0.00013988,2]
[332234200,1721061044048,-73.20738783,0.00013988,2]
[332234202,1721061044058,-500.0,0.00013988,2]
[332234204,1721061044067,-500.0,0.00013988,2]
[332234205,1721061044076,-500.0,0.00013988,2]